bitfinex-derivatives/quotes_BNBF0:USTF0_20250510
["timestamp","ask_amount","ask_price","bid_price","bid_amount"]
[1746906514321,0.28131256,654.22,652.75,0.30639601]
[1746906514620,0.28131256,654.21,652.75,0.30639601]
[1746906515022,0.28131256,654.2,652.75,0.30639601]
[1746906515316,0.26631566,654.38,652.75,0.30639601]
[1746906515722,0.28133576,654.37,652.75,0.30639601]
[1746906516217,0.28133576,654.36,652.75,0.30639601]
[1746906516622,0.26632993,654.36,652.75,0.30639601]
[1746906516822,0.28134418,654.35,652.75,0.30639601]
[1746906517220,0.28134418,654.34,652.75,0.30639601]
[1746906517624,0.28134418,654.33,652.75,0.30639601]
[1746906518022,0.28134418,654.32,652.75,0.30639601]
[1746906518418,0.28134418,654.31,652.75,0.30639601]
[1746906519023,0.28134418,654.3,652.75,0.30639601]
[1746906519522,0.28134418,654.29,652.75,0.30639601]
[1746906519721,0.5476843,654.29,652.75,0.30639601]
[1746906520228,0.28134418,654.28,652.75,0.30639601]
[1746906522729,0.26635133,654.27,652.75,0.30639601]
[1746906523228,0.28134418,654.26,652.75,0.30639601]
[1746906525631,0.26635337,654.25,652.75,0.30639601]
[1746906525832,0.28134418,654.24,652.75,0.30639601]
[1746906528533,0.57759639,654.89,652.75,0.30639601]
[1746906528534,0.28134418,654.88,652.75,0.30639601]
[1746906528734,0.26632789,654.23,652.75,0.30639601]
[1746906529031,0.5867483,654.87,652.75,0.30639601]
[1746906529336,1.96604543,654.79,652.75,0.30639601]
[1746906529734,0.85894057,654.78,652.75,0.30639601]
[1746906530134,0.28134418,654.77,652.75,0.30639601]
[1746906530333,0.54764558,654.77,652.75,0.30639601]
[1746906530534,0.28134418,654.76,652.75,0.30639601]
[1746906530835,0.28134418,654.75,652.75,0.30639601]
[1746906531530,0.28134418,654.74,652.75,0.30639601]
[1746906531734,0.54764659,654.74,652.75,0.30639601]
[1746906531936,1.96604543,654.45,652.75,0.30639601]
[1746906532536,0.85894057,654.44,652.75,0.30639601]
[1746906532835,0.28134418,654.43,652.75,0.30639601]
[1746906533233,0.28134418,654.42,652.75,0.30639601]
[1746906533638,1.96604543,654.25,652.75,0.30639601]
[1746906534134,0.85894057,654.24,652.75,0.30639601]
[1746906534536,0.54770061,654.23,652.75,0.30639601]
[1746906535033,0.28134418,654.22,652.75,0.30639601]
[1746906535634,0.28134418,654.21,652.75,0.30639601]
[1746906536037,0.28134418,654.2,652.75,0.30639601]
[1746906536538,0.28134418,654.19,652.75,0.30639601]
[1746906536832,0.26635643,654.23,652.75,0.30639601]
[1746906537233,0.28135372,654.22,652.75,0.30639601]
[1746906537534,0.54770913,654.22,652.75,0.30639601]
[1746906538238,0.28135372,654.21,652.75,0.30639601]
[1746906540737,0.26635847,654.2,652.75,0.30639601]
[1746906541238,0.28135372,654.19,652.75,0.30639601]
[1746906543639,0.26648799,654.18,652.75,0.30639601]
[1746906543839,0.28135372,654.17,652.75,0.30639601]
[1746906546541,0.26638497,654.16,652.75,0.30639601]
[1746906547239,0.28135372,654.15,652.75,0.30639601]
[1746906549744,0.26653289,654.14,652.75,0.30639601]
[1746906550246,0.28146759,654.13,652.75,0.30639601]
[1746906552541,0.26645126,654.12,652.75,0.30639601]
[1746906553046,0.28146759,654.11,652.75,0.30639601]
[1746906558046,0.28146759,654.1,652.75,0.30639601]
[1746906558448,0.28146759,654.09,652.75,0.30639601]
[1746906558649,0.54808829,654.09,652.75,0.30639601]
[1746906558948,0.28146759,654.08,652.75,0.30639601]
[1746906559351,0.28146759,654.07,652.75,0.30639601]
[1746906559752,0.28146759,654.06,652.75,0.30639601]
[1746906560051,0.28146759,654.05,652.75,0.30639601]
[1746906560554,0.28146759,654.04,652.75,0.30639601]
[1746906560955,0.28146759,654.03,652.75,0.30639601]
[1746906561353,0.28146759,654.02,652.75,0.30639601]
[1746906561648,0.28146759,654.01,652.75,0.30639601]
[1746906561854,0.54801681,654.01,652.75,0.30639601]
[1746906562050,0.28146759,654.0,652.75,0.30639601]
[1746906562255,0.28146759,653.99,652.75,0.30639601]
[1746906562655,0.28146759,653.98,652.75,0.30639601]
[1746906562949,0.28146759,653.97,652.75,0.30639601]
[1746906563355,0.28146759,653.96,652.75,0.30639601]
[1746906563654,0.28146759,653.95,652.75,0.30639601]
[1746906564149,0.28146759,653.94,652.75,0.30639601]
[1746906564354,1.96604543,654.34,652.75,0.30639601]
[1746906564655,0.26658598,653.93,652.75,0.30639601]
[1746906564854,0.85864574,654.33,652.75,0.30639601]
[1746906565057,0.54804545,653.92,652.75,0.30639601]
[1746906565354,0.28149215,653.91,652.75,0.30639601]
[1746906565657,0.28149215,653.9,652.75,0.30639601]
[1746906566155,0.28149215,653.89,652.75,0.30639601]
[1746906566557,0.28149215,653.88,652.75,0.30639601]
[1746906567057,0.28149215,653.87,652.75,0.30639601]
[1746906567657,0.26657781,653.86,652.75,0.30639601]
[1746906567853,0.54806996,653.86,652.75,0.30639601]
[1746906568359,0.28149215,653.85,652.75,0.30639601]
[1746906568654,0.28149215,653.84,652.75,0.30639601]
[1746906569060,0.28149215,653.83,652.75,0.30639601]
[1746906569555,0.28149215,653.82,652.75,0.30639601]
[1746906569759,0.28149215,653.81,652.75,0.30639601]
[1746906569960,0.28149215,653.8,652.75,0.30639601]
[1746906570559,0.54809038,653.79,652.75,0.30639601]
[1746906570760,0.28149215,653.78,652.75,0.30639601]
[1746906571356,0.28149215,653.77,652.75,0.30639601]
[1746906571761,0.28149215,653.76,652.75,0.30639601]
[1746906572161,0.28149215,653.75,652.75,0.30639601]
[1746906572661,0.28149215,653.74,652.75,0.30639601]
[1746906573262,0.28149215,653.73,652.75,0.30639601]
[1746906573667,0.54808732,653.72,652.75,0.30639601]
[1746906574062,0.28149215,653.71,652.75,0.30639601]
[1746906574361,0.28149215,653.7,652.75,0.30639601]
[1746906574759,0.28149215,653.69,652.75,0.30639601]
[1746906575062,0.28149215,653.68,652.75,0.30639601]
[1746906575558,0.28149215,653.67,652.75,0.30639601]
[1746906575858,0.28149215,653.66,652.75,0.30639601]
[1746906576164,0.28149215,653.65,652.75,0.30639601]
[1746906576662,0.28149215,653.64,652.75,0.30639601]
[1746906576860,0.28149215,653.63,652.75,0.30639601]
[1746906577157,0.266587,653.64,652.75,0.30639601]
[1746906579365,1.96604543,653.95,652.75,0.30639601]
[1746906579558,0.26655739,653.63,652.75,0.30639601]
[1746906579958,0.28147534,653.94,652.75,0.30639601]
[1746906580159,0.26655841,653.62,652.75,0.30639601]
[1746906580364,1.96604543,653.95,652.75,0.30639601]
[1746906580566,1.96604543,655.59,652.75,0.30639601]
[1746906580860,0.28147509,654.85,652.75,0.30639601]
[1746906581064,0.30542278,654.83,652.75,0.30639601]
[1746906581760,0.28147509,654.82,652.75,0.30639601]
[1746906581965,0.30543677,654.8,652.75,0.30639601]
[1746906582664,0.54803248,654.79,652.75,0.30639601]
[1746906582863,0.30545076,654.77,652.75,0.30639601]
[1746906583262,0.28147509,654.76,652.75,0.30639601]
[1746906583460,0.30546009,654.75,652.75,0.30639601]
[1746906584161,0.28147509,654.74,652.75,0.30639601]
[1746906584865,0.28147509,654.73,652.75,0.30639601]
[1746906585063,0.30547409,654.72,652.75,0.30639601]
[1746906585267,0.58694918,654.72,652.75,0.30639601]
[1746906585669,0.54803452,654.71,652.75,0.30639601]
[1746906585869,0.30548342,654.7,652.75,0.30639601]
[1746906586168,0.2814764,654.69,652.75,0.30639601]
[1746906586368,0.30549275,654.68,652.75,0.30639601]
[1746906586765,0.2814764,654.67,652.75,0.30639601]
[1746906586969,0.30550209,654.66,652.75,0.30639601]
[1746906587168,0.58697849,654.66,652.75,0.30639601]
[1746906587471,0.2814764,654.65,652.75,0.30639601]
[1746906587665,0.58698782,654.64,652.75,0.30639601]
[1746906587964,0.30551609,654.63,652.75,0.30639601]
[1746906588164,0.58699249,654.63,652.75,0.30639601]
[1746906588565,0.2814764,654.62,652.75,0.30639601]
[1746906588769,0.30552542,654.61,652.75,0.30639601]
[1746906588967,0.58700182,654.61,652.75,0.30639601]
[1746906589270,0.2814764,654.6,652.75,0.30639601]
[1746906589570,1.96604543,654.17,652.75,0.30639601]
[1746906590072,0.85840003,654.16,652.75,0.30639601]
[1746906590370,0.2814764,654.15,652.75,0.30639601]
[1746906590770,0.2814764,654.14,652.75,0.30639601]
[1746906591169,1.96604543,654.04,652.75,0.30639601]
[1746906591667,0.26645942,654.03,652.75,0.30639601]
[1746906591866,0.2814764,654.02,652.75,0.30639601]
[1746906592266,0.2814764,654.01,652.75,0.30639601]
[1746906592771,0.2814764,654.0,652.75,0.30639601]
[1746906593070,0.2814764,653.99,652.75,0.30639601]
[1746906593569,0.2814764,653.98,652.75,0.30639601]
[1746906593870,0.2814764,653.97,652.75,0.30639601]
[1746906594266,0.2814764,653.96,652.75,0.30639601]
[1746906594767,0.54802664,653.95,652.75,0.30639601]
[1746906595174,0.2814764,653.94,652.75,0.30639601]
[1746906595573,0.2814764,653.93,652.75,0.30639601]
[1746906595970,0.2814764,653.92,652.75,0.30639601]
[1746906596275,0.2814764,653.91,652.75,0.30639601]
[1746906596675,0.2814764,653.9,652.75,0.30639601]
[1746906596974,0.2814764,653.89,652.75,0.30639601]
[1746906597275,0.2814764,653.88,652.75,0.30639601]
[1746906597677,0.2814764,653.87,652.75,0.30639601]
[1746906597978,0.2814764,653.86,652.75,0.30639601]
[1746906598477,0.2814764,653.85,652.75,0.30639601]
[1746906598980,0.2814764,653.84,652.75,0.30639601]
[1746906599278,0.2814764,653.83,652.75,0.30639601]
[1746906599678,0.2814764,653.82,652.75,0.30639601]
[1746906600178,0.2814764,653.81,652.75,0.30639601]
[1746906600480,0.26654003,653.88,652.75,0.30639601]
[1746906600981,0.28145158,653.87,652.75,0.30639601]
[1746906601381,0.28145158,653.86,652.75,0.30639601]
[1746906601681,0.28145158,653.85,652.75,0.30639601]
[1746906602079,0.28145158,653.84,652.75,0.30639601]
[1746906602480,0.28145158,653.83,652.75,0.30639601]
[1746906602984,0.28145158,653.82,652.75,0.30639601]
[1746906603379,0.28145158,653.81,652.75,0.30639601]
[1746906603583,0.28145158,653.8,652.75,0.30639601]
[1746906603987,0.28145158,653.79,652.75,0.30639601]
[1746906604286,0.28145158,653.87,652.75,0.30639601]
[1746906604889,1.96604543,653.84,652.75,0.30639601]
[1746906605888,0.85860081,653.83,652.75,0.30639601]
[1746906606789,0.28145158,653.83,652.75,0.30639601]
[1746906607389,0.28145158,653.87,652.75,0.30639601]
[1746906609585,0.26654003,653.88,652.75,0.30639601]
[1746906609887,0.28144982,653.87,652.75,0.30639601]
[1746906612688,0.2664737,653.86,652.75,0.30639601]
[1746906613293,0.28144982,653.85,652.75,0.30639601]
[1746906615794,0.26653799,653.84,652.75,0.30639601]
[1746906616290,0.28144982,653.83,652.75,0.30639601]
[1746906618697,0.26661559,653.82,652.75,0.30639601]
[1746906618893,0.28144982,653.81,652.75,0.30639601]
[1746906620699,0.28144982,653.8,652.75,0.30639601]
[1746906621096,0.28144982,653.79,652.75,0.30639601]
[1746906621596,0.28144982,653.78,652.75,0.30639601]
[1746906621799,0.54793169,653.78,652.75,0.30639601]
[1746906622098,0.28144982,653.77,652.75,0.30639601]
[1746906623501,0.28144982,653.76,652.75,0.30639601]
[1746906623801,0.28144982,653.75,652.75,0.30639601]
[1746906624300,0.28144982,653.77,652.75,0.30639601]
[1746906624801,0.54802456,653.76,652.75,0.30639601]
[1746906625100,0.28144982,653.75,652.75,0.30639601]
[1746906625407,0.28144982,653.74,652.75,0.30639601]
[1746906625702,0.28144982,653.73,652.75,0.30639601]
[1746906626103,0.28144982,653.72,652.75,0.30639601]
[1746906626497,0.28144982,653.71,652.75,0.30639601]
[1746906626902,0.28144982,653.7,652.75,0.30639601]
[1746906627403,0.28144982,653.69,652.75,0.30639601]
[1746906627604,0.28144982,653.68,652.75,0.30639601]
[1746906627999,0.28144982,653.67,652.75,0.30639601]
[1746906628403,0.28144982,653.66,652.75,0.30639601]
[1746906628708,0.28144982,653.65,652.75,0.30639601]
[1746906629005,0.26648799,653.69,652.75,0.30639601]
[1746906629506,0.28149182,653.68,652.75,0.30639601]
[1746906630607,0.26649513,653.67,652.75,0.30639601]
[1746906631006,0.28149182,653.66,652.75,0.30639601]
[1746906633716,0.26657781,653.65,652.75,0.30639601]
[1746906634013,0.28149182,653.64,652.75,0.30639601]
[1746906636315,1.96604543,654.06,652.75,0.30639601]
[1746906636619,0.85894771,654.05,652.75,0.30639601]
[1746906636917,0.28149252,654.04,652.75,0.30639601]
[1746906637312,0.28149252,654.03,652.75,0.30639601]
[1746906637715,0.28149252,654.02,652.75,0.30639601]
[1746906638016,0.28149252,654.01,652.75,0.30639601]
[1746906638617,0.28149252,654.0,652.75,0.30639601]
[1746906639015,0.28149252,653.99,652.75,0.30639601]
[1746906639220,0.26653799,654.05,652.75,0.30639601]
[1746906639719,0.2814922,654.04,652.75,0.30639601]
[1746906640220,0.2814922,654.03,652.75,0.30639601]
[1746906640716,0.2814922,654.02,652.75,0.30639601]
[1746906641116,0.2814922,654.01,652.75,0.30639601]
[1746906641523,0.2814922,654.0,652.75,0.30639601]
[1746906641717,0.2814922,653.99,652.75,0.30639601]
[1746906642121,0.2814922,653.98,652.75,0.30639601]
[1746906642717,0.54803223,653.97,652.75,0.30639601]
[1746906642922,0.2814922,653.96,652.75,0.30639601]
[1746906643320,0.2814922,653.95,652.75,0.30639601]
[1746906643616,0.2814922,653.94,652.75,0.30639601]
[1746906643923,0.2814922,653.93,652.75,0.30639601]
[1746906644924,0.2814922,653.92,652.75,0.30639601]
[1746906645221,0.2814922,653.91,652.75,0.30639601]
[1746906645623,0.26656351,653.9,652.75,0.30639601]
[1746906645926,0.2814922,653.89,652.75,0.30639601]
[1746906648425,0.2814922,653.88,652.75,0.30639601]
[1746906648928,0.26658495,653.88,652.75,0.30639601]
[1746906649227,0.2814922,653.87,652.75,0.30639601]
[1746906649928,0.26658495,653.88,652.75,0.30639601]
[1746906650324,0.28150997,653.87,652.75,0.30639601]
[1746906651728,0.26659006,653.86,652.75,0.30639601]
[1746906652028,0.54810003,653.86,652.75,0.30639601]
[1746906652429,0.28150997,653.85,652.75,0.30639601]
[1746906652831,0.28150997,653.84,652.75,0.30639601]
[1746906653228,0.28150997,653.83,652.75,0.30639601]
[1746906653529,0.28150997,653.85,652.75,0.30639601]
[1746906653826,0.28150997,653.84,652.75,0.30639601]
[1746906654231,0.28150997,653.83,652.75,0.30639601]
[1746906654731,0.28150997,653.85,652.75,0.30639601]
[1746906655032,0.26656351,653.82,652.75,0.30639601]
[1746906655333,0.28150997,653.81,652.75,0.30639601]
[1746906655732,0.28150997,653.8,652.75,0.30639601]
[1746906656432,0.28150997,653.79,652.75,0.30639601]
[1746906657036,0.28150997,653.78,652.75,0.30639601]
[1746906657429,0.28150997,653.77,652.75,0.30639601]
[1746906657831,0.54810411,653.77,652.75,0.30639601]
[1746906658133,0.28150997,653.76,652.75,0.30639601]
[1746906658334,0.28150997,653.75,652.75,0.30639601]
[1746906658835,0.28150997,653.74,652.75,0.30639601]
[1746906659136,0.28150997,653.73,652.75,0.30639601]
[1746906659437,0.28150997,653.72,652.75,0.30639601]
[1746906660038,0.28150997,653.71,652.75,0.30639601]
[1746906660437,0.28150997,653.7,652.75,0.30639601]
[1746906660937,0.28150997,653.69,652.75,0.30639601]
[1746906661236,0.28150997,653.68,652.75,0.30639601]
[1746906661637,0.28150997,653.67,652.75,0.30639601]
[1746906661934,0.28150997,653.69,652.75,0.30639601]
[1746906664941,0.26658495,653.7,652.75,0.30639601]
[1746906665341,0.28151373,653.69,652.75,0.30639601]
[1746906666540,0.28151373,654.16,652.75,0.30639601]
[1746906666740,0.28151373,654.15,652.75,0.30639601]
[1746906666939,0.26656045,653.68,652.75,0.30639601]
[1746906667140,0.28151373,654.14,652.75,0.30639601]
[1746906667341,0.5480752,653.67,652.75,0.30639601]
[1746906667537,0.28151373,653.66,652.75,0.30639601]
[1746906667941,0.26660946,653.66,652.75,0.30639601]
[1746906668340,0.28151373,653.65,652.75,0.30639601]
[1746906668742,0.26660946,653.66,652.75,0.30639601]
[1746906668941,0.28149504,653.65,652.75,0.30639601]
[1746906669541,0.28149504,654.12,652.75,0.30639601]
[1746906669737,0.26660538,653.64,652.75,0.30639601]
[1746906669942,0.28149504,653.63,652.75,0.30639601]
[1746906670139,0.26655943,653.63,652.75,0.30639601]
[1746906670639,0.28149504,653.62,652.75,0.30639601]
[1746906672343,0.26655943,653.63,652.75,0.30639601]
[1746906672546,0.28149217,653.62,652.75,0.30639601]
[1746906672746,0.54804139,653.62,652.75,0.30639601]
[1746906672946,0.28149217,653.61,652.75,0.30639601]
[1746906673241,0.28149217,653.6,652.75,0.30639601]
[1746906673444,0.28149217,653.61,652.75,0.30639601]
[1746906673741,0.28149217,653.6,652.75,0.30639601]
[1746906673946,0.28149217,653.61,652.75,0.30639601]
[1746906674246,0.28149217,653.6,652.75,0.30639601]
[1746906674546,0.28149217,653.61,652.75,0.30639601]
[1746906674846,0.28149217,653.6,652.75,0.30639601]
[1746906675146,0.28149217,653.61,652.75,0.30639601]
[1746906675347,0.28149217,653.6,652.75,0.30639601]
[1746906675549,0.28149217,653.61,652.75,0.30639601]
[1746906675843,0.54806998,653.6,652.75,0.30639601]
[1746906676048,0.28149217,653.59,652.75,0.30639601]
[1746906676945,0.28149217,653.58,652.75,0.30639601]
[1746906677143,0.28149217,653.59,652.75,0.30639601]
[1746906678644,0.26659108,653.58,652.75,0.30639601]
[1746906678845,0.28149217,653.57,652.75,0.30639601]
[1746906681657,0.28149217,654.14,652.75,0.30639601]
[1746906681855,0.26658189,653.56,652.75,0.30639601]
[1746906682055,0.28149217,653.55,652.75,0.30639601]
[1746906682253,0.28149217,654.14,652.75,0.30639601]
[1746906682457,0.26652677,653.55,652.75,0.30639601]
[1746906682658,0.28149217,654.13,652.75,0.30639601]
[1746906682858,0.54801689,653.54,652.75,0.30639601]
[1746906683158,0.28149217,653.53,652.75,0.30639601]
[1746906683358,0.26658598,653.53,652.75,0.30639601]
[1746906683555,0.28149217,653.52,652.75,0.30639601]
[1746906684660,0.28149217,654.18,652.75,0.30639601]
[1746906684859,0.28149217,654.17,652.75,0.30639601]
[1746906685060,0.28149217,654.16,652.75,0.30639601]
[1746906685359,0.28149217,654.15,652.75,0.30639601]
[1746906685660,0.54800159,654.15,652.75,0.30639601]
[1746906685855,0.28149217,654.14,652.75,0.30639601]
[1746906687261,0.28149217,654.13,652.75,0.30639601]
[1746906687560,0.28149217,654.14,652.75,0.30639601]
[1746906687859,0.26649921,654.12,652.75,0.30639601]
[1746906688259,0.28149217,654.11,652.75,0.30639601]
[1746906690661,0.26657066,654.1,652.75,0.30639601]
[1746906690959,0.28149217,654.09,652.75,0.30639601]
[1746906695566,0.26657066,654.1,652.75,0.30639601]
[1746906695964,0.28145263,654.09,652.75,0.30639601]
[1746906699865,0.26652472,654.08,652.75,0.30639601]
[1746906700167,0.28145263,654.07,652.75,0.30639601]
[1746906702669,0.26663602,654.06,652.75,0.30639601]
[1746906703269,0.28145263,654.05,652.75,0.30639601]
[1746906705066,0.26663602,654.06,652.75,0.30639601]
[1746906705366,0.28158323,654.05,652.75,0.30639601]
[1746906705765,0.54824172,654.05,652.75,0.30639601]
[1746906705966,0.26665849,654.05,652.75,0.30639601]
[1746906706170,0.28158323,654.04,652.75,0.30639601]
[1746906706372,0.58737492,654.04,652.75,0.30639601]
[1746906706674,0.28158323,654.03,652.75,0.30639601]
[1746906707072,0.28158323,654.02,652.75,0.30639601]
[1746906707471,0.28158323,654.01,652.75,0.30639601]
[1746906707771,0.28158323,654.0,652.75,0.30639601]
[1746906707973,0.30579169,654.04,652.75,0.30639601]
[1746906708168,0.28169917,654.03,652.75,0.30639601]
[1746906708571,0.28169917,654.02,652.75,0.30639601]
[1746906708769,0.54847725,654.02,652.75,0.30639601]
[1746906708973,0.28169917,654.01,652.75,0.30639601]
[1746906709270,0.28169917,654.0,652.75,0.30639601]
[1746906709668,0.28169917,653.99,652.75,0.30639601]
[1746906710071,0.28169917,653.98,652.75,0.30639601]
[1746906710370,0.28169917,653.97,652.75,0.30639601]
[1746906710771,0.28169917,653.96,652.75,0.30639601]
[1746906711070,0.28169917,653.95,652.75,0.30639601]
[1746906711371,0.28169917,653.94,652.75,0.30639601]
[1746906711872,0.28169917,653.93,652.75,0.30639601]
[1746906712272,0.28169917,653.92,652.75,0.30639601]
[1746906712671,0.28169917,653.91,652.75,0.30639601]
[1746906712974,0.28169917,653.9,652.75,0.30639601]
[1746906713472,0.28169917,653.89,652.75,0.30639601]
[1746906714072,0.28169917,653.88,652.75,0.30639601]
[1746906714473,0.28169917,653.87,652.75,0.30639601]
[1746906714868,0.28169917,653.86,652.75,0.30639601]
[1746906715372,0.28169917,653.85,652.75,0.30639601]
[1746906715671,0.28169917,653.84,652.75,0.30639601]
[1746906715974,0.28169917,653.83,652.75,0.30639601]
[1746906716372,0.28169917,653.82,652.75,0.30639601]
[1746906716773,0.28169917,653.81,652.75,0.30639601]
[1746906716967,0.28169917,653.8,652.75,0.30639601]
[1746906717668,0.26676581,653.79,652.75,0.30639601]
[1746906718371,0.54846498,653.79,652.75,0.30639601]
[1746906718775,0.28169917,653.78,652.75,0.30639601]
[1746906719177,0.28169917,653.77,652.75,0.30639601]
[1746906719576,0.28169917,653.76,652.75,0.30639601]
[1746906719977,0.28169917,653.75,652.75,0.30639601]
[1746906720175,0.28169917,653.74,652.75,0.30639601]
[1746906720477,0.28169917,653.73,652.75,0.30639601]
[1746906720679,0.54846191,653.73,652.75,0.30639601]
[1746906720976,0.28169917,653.72,652.75,0.30639601]
[1746906721273,0.28169917,653.71,652.75,0.30639601]
[1746906721578,0.28169917,653.7,652.75,0.30639601]
[1746906721973,0.28169917,653.69,652.75,0.30639601]
[1746906722377,0.28169917,653.68,652.75,0.30639601]
[1746906723278,0.28169917,653.67,652.75,0.30639601]
[1746906723479,0.28169917,653.66,652.75,0.30639601]
[1746906723678,0.54845067,653.66,652.75,0.30639601]
[1746906723874,0.28169917,653.65,652.75,0.30639601]
[1746906724279,0.28169917,653.64,652.75,0.30639601]
[1746906724779,0.28169917,653.63,652.75,0.30639601]
[1746906725181,0.28169917,653.62,652.75,0.30639601]
[1746906725580,0.28169917,653.61,652.75,0.30639601]
[1746906726080,0.28169917,653.6,652.75,0.30639601]
[1746906726380,0.28169917,653.59,652.75,0.30639601]
[1746906726781,0.28169917,653.58,652.75,0.30639601]
[1746906727082,0.28169917,653.57,652.75,0.30639601]
[1746906727681,0.28169917,653.56,652.75,0.30639601]
[1746906728081,0.28169917,653.55,652.75,0.30639601]
[1746906728381,0.28169917,653.54,652.75,0.30639601]
[1746906728880,0.28169917,653.53,652.75,0.30639601]
[1746906729378,0.28169917,653.52,652.75,0.30639601]
[1746906729883,0.26672696,653.51,652.75,0.30639601]
[1746906730382,0.54842613,653.51,652.75,0.30639601]
[1746906730881,0.28169917,653.5,652.75,0.30639601]
[1746906731082,0.28169917,653.49,652.75,0.30639601]
[1746906731483,0.28169917,653.48,652.75,0.30639601]
[1746906731882,0.28169917,653.47,652.75,0.30639601]
[1746906732379,0.28169917,653.46,652.75,0.30639601]
[1746906732883,0.26673003,653.45,652.75,0.30639601]
[1746906733286,0.5484292,653.45,652.75,0.30639601]
[1746906733687,0.28169917,653.44,652.75,0.30639601]
[1746906734084,0.28169917,653.43,652.75,0.30639601]
[1746906734486,0.28169917,653.42,652.75,0.30639601]
[1746906734785,0.28169917,653.41,652.75,0.30639601]
[1746906735083,0.28169917,653.4,652.75,0.30639601]
[1746906735385,0.28169917,653.39,652.75,0.30639601]
[1746906735787,0.54842,653.38,652.75,0.30639601]
[1746906736087,0.28169917,653.37,652.75,0.30639601]
[1746906736587,0.28169917,653.36,652.75,0.30639601]
[1746906736986,0.28169917,653.35,652.75,0.30639601]
[1746906737287,0.28169917,653.34,652.75,0.30639601]
[1746906737587,0.26672083,653.38,652.75,0.30639601]
[1746906737588,0.28169917,653.33,652.75,0.30639601]
[1746906737887,0.28169917,653.32,652.75,0.30639601]
[1746906738288,0.28169917,653.31,652.75,0.30639601]
[1746906738684,0.28169917,653.3,652.75,0.30639601]
[1746906738886,0.54841387,653.3,652.75,0.30639601]
[1746906739086,0.28169917,653.29,652.75,0.30639601]
[1746906739388,0.28169917,653.28,652.75,0.30639601]
[1746906739789,0.28169917,653.27,652.75,0.30639601]
[1746906740283,0.28169917,653.26,652.75,0.30639601]
[1746906740589,0.28169917,653.25,652.75,0.30639601]
[1746906740789,0.28169917,653.24,652.75,0.30639601]
[1746906741090,0.28169917,653.23,652.75,0.30639601]
[1746906741690,0.28169917,653.22,652.75,0.30639601]
[1746906741893,0.54839036,653.22,652.75,0.30639601]
[1746906742393,0.26669119,653.22,652.75,0.30639601]
[1746906742893,0.28169917,653.21,652.75,0.30639601]
[1746906744794,0.26670856,653.2,652.75,0.30639601]
[1746906745393,0.28169917,653.19,652.75,0.30639601]
[1746906747794,0.26671572,653.18,652.75,0.30639601]
[1746906748294,0.28169917,653.17,652.75,0.30639601]
[1746906750798,0.28169917,653.88,652.75,0.30639601]
[1746906750991,0.26664623,653.16,652.75,0.30639601]
[1746906751192,0.28169917,653.87,652.75,0.30639601]
[1746906751395,0.26664726,653.15,652.75,0.30639601]
[1746906751793,0.28169917,653.14,652.75,0.30639601]
[1746906751993,0.5483454,653.14,652.75,0.30639601]
[1746906752193,0.26664623,653.14,652.75,0.30639601]
[1746906752398,0.28169917,653.13,652.75,0.30639601]
[1746906753696,0.26671981,653.12,652.75,0.30639601]
[1746906754500,0.28169917,653.11,652.75,0.30639601]
[1746906756804,0.26665032,653.1,652.75,0.30639601]
[1746906757203,0.28169917,653.09,652.75,0.30639601]
[1746906757602,0.26665032,653.1,652.75,0.30639601]
[1746906757901,0.28161876,653.09,652.75,0.30639601]
[1746906765806,0.57813328,653.8,652.75,0.30639601]
[1746906765807,0.28161876,653.79,652.75,0.30639601]
[1746906766001,0.26673514,653.08,652.75,0.30639601]
[1746906766204,0.28161876,653.07,652.75,0.30639601]
[1746906766506,0.26666462,653.07,652.75,0.30639601]
[1746906766806,0.28161876,653.06,652.75,0.30639601]
[1746906768906,0.26666462,653.05,652.75,0.30639601]
[1746906769405,0.28161876,653.04,652.75,0.30639601]
[1746906771709,0.26672287,653.03,652.75,0.30639601]
[1746906772207,0.28161876,653.02,652.75,0.30639601]
[1746906772810,0.26672287,653.03,652.75,0.30639601]
[1746906774413,1.96604543,653.62,652.75,0.30639601]
[1746906774609,1.96604543,654.5,652.75,0.30639601]
[1746906774814,0.26667075,653.02,652.75,0.30639601]
[1746906775114,0.57793612,654.49,652.75,0.30639601]
[1746906775315,0.26668608,653.01,652.75,0.30639601]
[1746906775510,0.28161636,654.03,652.75,0.30639601]
[1746906775810,0.26668608,653.0,652.75,0.30639601]
[1746906776014,1.96604543,654.5,652.75,0.30639601]
[1746906776316,0.2666871,653.0,652.75,0.30639601]
[1746906776515,0.28161632,654.03,652.75,0.30639601]
[1746906776816,0.26668506,653.0,652.75,0.30639601]
[1746906777111,0.28161632,654.03,652.75,0.30639601]
[1746906777112,0.57793876,654.5,652.75,0.30639601]
[1746906777316,0.26668608,653.0,652.75,0.30639601]
[1746906777511,0.57793876,654.5,652.75,0.30639601]
[1746906777817,0.26668506,653.0,652.75,0.30639601]
[1746906782225,0.28161545,652.99,652.75,0.30639601]
[1746906783519,0.26664317,653.07,652.75,0.30639601]
[1746906783823,0.28161545,653.06,652.75,0.30639601]
[1746906786827,0.26655739,653.07,652.75,0.30639601]
[1746906787224,0.28161545,653.06,652.75,0.30639601]
[1746906789623,0.28161545,653.82,652.75,0.30639601]
[1746906789928,0.26655841,653.07,652.75,0.30639601]
[1746906790125,0.28161545,653.81,652.75,0.30639601]